bitfinex-derivatives/quotes_SOLF0:USTF0_20250626
["timestamp","ask_amount","ask_price","bid_price","bid_amount"]
[1750944688276,7.0085,142.64,142.6,36.6]
[1750944688568,4.48983005,142.65,142.58,118.14923388]
[1750944688756,7.0084,142.64,142.62,7.0091]
[1750944689160,4.48983005,142.65,142.58,113.65940383]
[1750944689371,7.009,142.63,142.58,113.65940383]
[1750944689572,4.48983005,142.63,142.57,39.03]
[1750944689967,7.0096,142.62,142.6,7.0102]
[1750944690366,7.0096,142.62,142.59,7.0106]
[1750944690569,7.01,142.61,142.57,36.6]
[1750944690773,7.01,142.61,142.55,2.447]
[1750944690774,4.48983005,142.61,142.55,2.447]
[1750944690976,4.48983005,142.61,142.58,7.0113]
[1750944691768,7.0106,142.6,142.57,7.0116]
[1750944691966,4.48983005,142.61,142.55,2.447]
[1750944692170,11.49983005,142.61,142.58,7.011]
[1750944693184,7.0106,142.6,142.55,2.447]
[1750944693785,11.49983005,142.61,142.58,7.0112]
[1750944694377,7.01,142.61,142.59,7.0108]
[1750944694590,11.49983005,142.61,142.55,2.447]
[1750944694995,7.0096,142.62,142.55,2.447]
[1750944695192,36.62,142.63,142.56,4.48983005]
[1750944695594,36.62,142.63,142.61,7.0096]
[1750944695790,36.62,142.63,142.56,4.48983005]
[1750944696197,36.62,142.63,142.62,7.0093]
[1750944696396,36.62,142.63,142.56,4.48983005]
[1750944696596,4.48983005,142.64,142.58,4.48983005]
[1750944696792,5.7686482,142.65,142.6,4.48983005]
[1750944696995,5.7686482,142.67,142.62,4.48983005]
[1750944697291,4.48983005,142.68,142.62,36.62]
[1750944697488,12.7757482,142.67,142.62,36.62]
[1750944697688,4.48983005,142.66,142.63,7.0086]
[1750944697887,17.26617825,142.66,142.63,7.0086]
[1750944698189,4.48983005,142.64,142.61,7.0096]
[1750944698396,7.0091,142.63,142.56,610.02983005]
[1750944698595,7.0091,142.63,142.57,36.62]
[1750944698896,4.48983005,142.62,142.57,36.62]
[1750944699091,7.0101,142.61,142.57,36.62]
[1750944699398,4.48983005,142.62,142.59,7.0105]
[1750944699899,11.49943005,142.62,142.59,7.0105]
[1750944700583,4.48983005,142.62,142.6,7.0103]
[1750944700991,4.48983005,142.62,142.57,36.62]
[1750944701194,4.48983005,142.63,142.57,36.62]
[1750944701494,5.20435898,142.65,142.6,4.48983005]
[1750944701704,5.80584298,142.66,142.6,4.48983005]
[1750944701893,10.29567303,142.67,142.6,4.48983005]
[1750944702196,10.29567303,142.67,142.65,7.0076]
[1750944702197,4.48983005,142.67,142.65,7.0076]
[1750944702392,36.62,142.68,142.6,4.48983005]
[1750944702594,4.53706387,142.7,142.62,4.48983005]
[1750944702595,5.20715723,142.69,142.62,4.48983005]
[1750944702795,5.80972079,142.69,142.63,36.62]
[1750944702992,4.48983005,142.69,142.63,36.62]
[1750944703193,22.51318505,142.69,142.66,7.0073]
[1750944703398,11.49603005,142.69,142.63,36.62]
[1750944703595,11.49613005,142.69,142.66,7.0071]
[1750944703900,4.48983005,142.69,142.63,36.62]
[1750944704200,4.48983005,142.74,142.66,4.48983005]
[1750944704394,13.79190972,142.73,142.66,4.48983005]
[1750944704589,11.49353005,142.74,142.71,7.0049]
[1750944704793,7.97549901,142.73,142.71,7.0049]
[1750944704990,4.48983005,142.74,142.71,7.0049]
[1750944705194,14.97979901,142.73,142.7,7.0053]
[1750944705394,4.48983005,142.74,142.67,41.3698]
[1750944705594,13.8014506,142.73,142.67,41.3698]
[1750944705799,7.0047,142.72,142.69,7.0059]
[1750944706395,5.82437647,142.73,142.67,41.3698]
[1750944706598,4.57152552,142.74,142.67,41.3698]
[1750944706800,7.98331986,142.73,142.71,7.0046]
[1750944707000,11.57522552,142.74,142.71,7.0046]
[1750944707195,7.99329161,142.73,142.67,41.3698]
[1750944707503,41.19152552,142.75,142.67,41.3698]
[1750944707810,20.827827,142.74,142.71,7.0047]
[1750944708101,36.62,142.75,142.67,48.11672736]
[1750944708305,2.7802143,142.76,142.69,6.74692736]
[1750944708602,4.63852915,142.79,142.73,6.74692736]
[1750944708801,5.83232815,142.8,142.73,43.34692736]
[1750944709003,41.24137911,142.81,142.73,43.34692736]
[1750944709004,8.03758247,142.79,142.73,36.6]
[1750944709199,5.86020303,142.8,142.73,36.6]
[1750944709503,8.03517571,142.79,142.75,7.0026]
[1750944709699,5.85806113,142.8,142.73,36.6]
[1750944709905,36.6,142.81,142.79,7.001]
[1750944710201,2.78034354,142.8,142.74,4.8616]
[1750944710401,41.85214277,142.81,142.74,4.8616]
[1750944710604,43.6,142.81,142.74,4.8616]
[1750944710794,48.85214277,142.81,142.74,4.8616]
[1750944710994,1.21899958,142.84,142.75,6.74692736]
[1750944711200,8.03052655,142.83,142.74,4.8616]
[1750944711499,18.59001064,142.85,142.77,6.74692736]
[1750944711803,8.0291698,142.84,142.77,36.6]
[1750944712000,2.79224193,142.83,142.77,36.6]
[1750944712399,21.78489826,142.84,142.77,36.6]
[1750944712599,14.78609826,142.84,142.77,36.6]
[1750944712796,6.9992,142.83,142.79,7.001]
[1750944713101,9.53699979,142.84,142.79,7.001]
[1750944713401,6.74692736,142.84,142.79,7.001]
[1750944713710,6.74692736,142.82,142.77,36.6]
[1750944714898,8.0391709,142.83,142.77,36.6]
[1750944715205,14.78609826,142.84,142.77,36.6]
[1750944715407,6.9993,142.83,142.8,7.0001]
[1750944715603,6.74692736,142.84,142.77,36.6]
[1750944716102,6.9991,142.83,142.77,36.6]
[1750944716806,6.9991,142.83,142.8,7.0002]
[1750944717101,13.74562736,142.84,142.77,36.6]
[1750944717407,36.6,142.86,142.8,6.74692736]
[1750944718304,2.2943,142.88,142.8,6.74692736]
[1750944718506,2.2943,142.88,142.81,36.58]
[1750944718805,6.9975,142.87,142.83,6.9987]
[1750944719111,2.2943,142.88,142.81,36.58]
[1750944719303,43.32692736,142.89,142.81,36.58]
[1750944719808,6.9973,142.87,142.84,6.9983]
[1750944720303,6.9979,142.86,142.83,6.9988]
[1750944720710,6.74692736,142.87,142.82,6.9994]
[1750944721309,6.9978,142.86,142.83,6.999]
[1750944721507,14.81020681,142.88,142.81,36.58]
[1750944721813,6.74692736,142.88,142.81,36.58]
[1750944722005,36.58,142.89,142.81,43.32692736]
[1750944722311,51.09382696,142.92,142.83,6.74692736]
[1750944722613,45.81162736,142.92,142.83,6.74692736]
[1750944722814,6.9959,142.9,142.83,6.74692736]
[1750944723002,5.27897975,142.91,142.83,6.74692736]
[1750944723203,45.81162736,142.92,142.83,6.74692736]
[1750944723511,48.59181967,142.92,142.83,6.74692736]
[1750944723805,41.85897975,142.92,142.85,6.74692736]
[1750944724008,41.85897975,142.92,142.81,39.0109]
[1750944724009,43.30692736,142.97,142.87,6.74692736]
[1750944724216,6.9939,142.94,142.91,6.9949]
[1750944724413,6.74692736,142.93,142.82,6.74692736]
[1750944724704,6.9965,142.89,142.83,36.56]
[1750944725114,36.56,142.91,142.83,36.56]
[1750944725312,6.9964,142.89,142.83,36.56]
[1750944725508,43.30692736,142.91,142.83,36.56]
[1750944725713,6.9959,142.9,142.87,6.9969]
[1750944726616,6.9961,142.89,142.87,6.9969]
[1750944727111,6.9958,142.9,142.88,6.9966]
[1750944727311,43.30692736,142.91,142.83,43.30692736]
[1750944727516,5.26551606,142.93,142.85,6.74692736]
[1750944727709,6.9949,142.92,142.89,6.9958]
[1750944728014,6.9949,142.92,142.86,2.4809]
[1750944728216,6.9949,142.92,142.89,6.9957]
[1750944728810,6.9949,142.92,142.9,6.9956]
[1750944729014,36.56,142.94,142.87,36.56]
[1750944729214,47.84942736,142.97,142.87,43.30692736]
[1750944729416,6.9944,142.93,142.9,6.9952]
[1750944730412,6.9944,142.93,142.91,6.995]
[1750944730710,6.9944,142.93,142.87,41.04477888]
[1750944730909,6.9938,142.94,142.87,41.04477888]
[1750944731111,4.48477888,142.95,142.87,41.04477888]
[1750944731311,41.1025,142.97,142.87,41.04477888]
[1750944731519,36.56,142.97,142.89,4.48477888]
[1750944731713,36.56,142.97,142.91,4.48477888]
[1750944731910,43.5526,142.97,142.94,6.9933]
[1750944732217,43.5526,142.97,142.91,36.56]
[1750944732511,43.5526,142.97,142.94,6.9932]
[1750944732916,36.56,142.97,142.95,6.993]
[1750944733212,6.9919,142.98,142.91,36.56]
[1750944733415,6.9919,142.98,142.95,6.9929]
[1750944733605,40.07835601,143.0,142.91,36.56]
[1750944733810,36.54,143.0,142.92,9.03216755]
[1750944734019,36.54,143.0,142.96,6.9922]
[1750944734234,6.9914,142.99,142.96,6.9922]
[1750944734418,6.9914,142.99,142.92,9.03216755]
[1750944734717,6.9914,142.99,142.96,6.9922]
[1750944734920,43.531,143.0,142.92,9.03216755]
[1750944735218,43.531,143.0,142.97,6.9917]
[1750944735420,6.9918,142.98,142.92,9.03216755]
[1750944735626,6.72356755,142.99,142.92,2.3086]
[1750944735819,6.72356755,142.97,142.88,4.8341]
[1750944736121,6.72356755,142.95,142.89,36.54]
[1750944736313,6.72356755,142.95,142.91,6.9949]
[1750944736613,6.72356755,142.95,142.89,36.54]
[1750944736822,36.54,142.96,142.89,36.54]
[1750944737010,6.72356755,142.95,142.89,36.54]
[1750944737922,6.72356755,142.95,142.9,6.9953]
[1750944738418,12.31210226,142.94,142.91,6.9951]
[1750944738622,6.72356755,142.95,142.91,6.9951]
[1750944738923,6.72356755,142.95,142.89,36.54]
[1750944738924,5.32103086,142.94,142.89,36.54]
[1750944739223,36.54,142.96,142.89,36.54]
[1750944739425,10.07972245,142.95,142.89,36.54]
[1750944739622,4.75621876,142.95,142.93,6.9941]
[1750944739925,4.75621876,142.95,142.9,6.72356755]
[1750944740114,2.7891592,142.98,142.9,6.72356755]
[1750944740621,9.7811592,142.98,142.95,6.9931]
[1750944740818,10.10418971,142.97,142.9,6.72356755]
[1750944741010,10.10418971,142.97,142.89,36.54]
[1750944741011,4.78950478,142.98,142.92,6.72356755]
[1750944741216,641.78,143.02,142.94,6.72356755]
[1750944741416,10.1098793,143.01,142.94,43.70356755]
[1750944741624,10.1098793,143.0,142.94,43.70356755]
[1750944741816,5.31665783,142.99,142.94,43.70356755]
[1750944742018,6.9903,143.01,142.94,43.70356755]
[1750944742214,10.07944276,143.0,142.94,36.98]
[1750944742524,10.07738601,142.99,142.94,36.98]
[1750944742729,12.30766429,142.98,142.95,6.9929]
[1750944742918,5.31397856,142.97,142.91,36.98]
[1750944743118,5.31397856,142.96,142.91,36.98]
[1750944743322,5.31397856,142.95,142.91,36.98]
[1750944743516,6.72356755,142.97,142.85,13.9959]
[1750944743717,6.72356755,142.95,142.87,39.4642]
[1750944743919,10.07820619,142.94,142.87,39.4642]
[1750944744128,16.80177374,142.93,142.87,39.4642]
[1750944744322,10.0805006,142.92,142.87,36.98]
[1750944744517,6.72356755,142.89,142.8,611.06356755]
[1750944744719,10.07992074,142.88,142.81,36.98]
[1750944745022,10.07992074,142.87,142.81,36.98]
[1750944745223,10.08298875,142.86,142.81,36.98]
[1750944745526,5.31626667,142.85,142.81,36.98]
[1750944745722,5.31626667,142.84,142.81,36.98]
[1750944745929,4.76669705,142.87,142.81,36.98]
[1750944746131,5.35061782,142.86,142.81,36.98]
[1750944746319,5.35061782,142.85,142.81,36.98]
[1750944746631,5.35061782,142.84,142.81,36.98]
[1750944746831,5.35875871,142.83,142.81,36.98]
[1750944747129,4.75030557,142.86,142.81,36.98]
[1750944747332,10.12071333,142.85,142.84,6.9983]
[1750944749234,16.01210397,142.85,142.84,6.9983]
[1750944749429,18.80816895,142.85,142.84,6.9983]
[1750944749633,12.91677831,142.85,142.84,6.9983]
[1750944749928,19.91497831,142.85,142.82,6.9994]
[1750944750130,10.12071333,142.84,142.81,36.98]
[1750944750423,10.12071333,142.83,142.82,6.9995]
[1750944751225,10.11915851,142.83,142.82,6.9995]
[1750944752932,5.36493381,142.83,142.82,6.9995]
[1750944754030,3.381e-05,142.83,142.82,6.9995]
[1750944754229,5.86732103,142.89,142.81,43.70356755]
[1750944754424,18.03,142.85,142.84,6.72356755]
[1750944754621,15.30182681,142.85,142.84,152.60216755]
[1750944754821,10.5358,142.85,142.84,145.8786]
[1750944755532,23.96974339,142.85,142.83,6.9988]
[1750944755729,7.57087756,142.84,142.78,4.7267]
[1750944756030,4.76705641,142.83,142.82,6.9993]
[1750944756229,4.76705641,142.83,142.78,37.0]
[1750944756425,54.25936755,142.85,142.81,6.9997]
[1750944756628,6.999,142.83,142.81,6.9997]
[1750944756831,54.25936755,142.85,142.78,37.0]
[1750944757029,13.43473503,142.84,142.78,37.0]
[1750944757329,7.57117684,142.83,142.78,37.0]
[1750944757526,4.7676778,142.82,142.78,37.0]
[1750944757729,54.25936755,142.85,142.78,37.0]
[1750944757927,13.43529433,142.84,142.78,37.0]
[1750944758128,7.57120555,142.83,142.78,37.0]
[1750944758432,4.76756447,142.82,142.78,37.0]
[1750944758633,6.9989,142.84,142.78,37.0]
[1750944758935,7.5722957,142.83,142.78,37.0]
[1750944759135,47.5358,142.85,142.78,37.0]
[1750944759432,13.45195871,142.84,142.78,37.0]
[1750944759632,7.58411745,142.83,142.78,43.72356755]
[1750944759831,47.5358,142.85,142.82,6.9995]
[1750944760131,13.44581293,142.84,142.82,6.9995]
[1750944760341,47.5358,142.85,142.84,6.9986]
[1750944760637,23.98485463,142.85,142.84,6.9986]
[1750944761135,23.98485463,142.85,142.78,43.72356755]
[1750944761337,2.80857804,142.84,142.78,43.72356755]
[1750944761640,10.5358,142.85,142.84,6.9986]
[1750944761825,18.12484297,142.85,142.78,43.72356755]
[1750944762029,10.5358,142.85,142.84,6.9986]
[1750944762225,13.34479007,142.85,142.78,43.72356755]
[1750944762425,10.5358,142.85,142.78,43.72356755]
[1750944762632,10.5358,142.85,142.83,6.9988]
[1750944762827,43.72356755,142.84,142.75,2.4211]
[1750944763025,6.72356755,142.78,142.67,4.5643]
[1750944763227,22.52366132,142.83,142.67,7.0054]
[1750944763228,42.86132562,142.77,142.67,7.0054]
[1750944763433,6.72356755,142.75,142.67,7.0054]
[1750944763935,4.797,142.76,142.67,7.0054]
[1750944764249,9.52504369,142.75,142.67,7.0054]
[1750944764435,6.72356755,142.75,142.67,7.0054]
[1750944764635,11.46856204,142.75,142.67,7.0054]
[1750944764841,18.47186204,142.75,142.72,7.0044]
[1750944765038,4.74499449,142.75,142.68,6.72356755]
[1750944765238,2.79508752,142.76,142.68,6.72356755]
[1750944765937,9.79758752,142.76,142.73,7.0036]
[1750944766136,11.9535255,142.76,142.67,41.7349]
[1750944766342,6.72356755,142.74,142.67,41.7349]
[1750944766535,13.72736755,142.74,142.67,41.7349]
[1750944766838,37.48,142.8,142.7,6.72356755]
[1750944767037,4.7994,142.81,142.73,6.72356755]
[1750944767246,15.63549245,142.82,142.75,6.72356755]
[1750944767446,8.63579245,142.82,142.75,6.72356755]
[1750944767742,2.79382236,142.82,142.75,6.72356755]
[1750944767946,39.8093,142.83,142.75,6.72356755]
[1750944768144,46.8085,142.83,142.8,7.0002]
[1750944768341,37.48,142.83,142.75,6.72356755]
[1750944768738,44.4792,142.83,142.8,7.0002]
[1750944769843,46.97718775,142.83,142.74,39.8312]
[1750944770241,7.0002,142.81,142.78,7.0011]
[1750944770445,37.48,142.83,142.75,6.72356755]
[1750944770847,37.48,142.83,142.77,6.72356755]
[1750944771050,17.25936755,142.85,142.77,6.72356755]
[1750944771350,10.5358,142.85,142.83,6.9987]
[1750944772039,17.25936755,142.85,142.78,37.48]
[1750944772640,6.72356755,142.83,142.76,37.48]
[1750944772840,44.20356755,142.83,142.76,37.48]
[1750944773041,7.0013,142.79,142.76,7.0022]
[1750944773239,6.72356755,142.81,142.73,37.48]
[1750944773543,4.6974,142.8,142.73,37.48]
[1750944773848,44.20356755,142.79,142.73,37.48]
[1750944775041,7.0017,142.78,142.75,7.0026]
[1750944775348,44.20356755,142.79,142.72,139.78]
[1750944775541,7.003,142.75,142.7,37.48]
[1750944775750,6.72356755,142.77,142.7,37.48]
[1750944776143,7.003,142.75,142.72,7.0042]
[1750944776344,6.72356755,142.77,142.7,37.48]
[1750944776544,6.72356755,142.75,142.67,44.20356755]
[1750944776755,44.20356755,142.75,142.67,44.20356755]
[1750944777050,37.48,142.75,142.67,44.20356755]
[1750944777245,44.483,142.75,142.67,44.20356755]
[1750944777852,44.483,142.75,142.72,7.0041]
[1750944778551,7.0035,142.74,142.72,7.0041]
[1750944778849,37.48,142.75,142.72,7.0041]
[1750944779041,44.4832,142.75,142.72,7.0041]
[1750944779551,44.4832,142.75,142.73,7.0039]
[1750944779746,6.72356755,142.77,142.67,44.20356755]
[1750944780055,37.5,142.78,142.75,7.0027]
[1750944780245,37.5,142.78,142.71,37.5]
[1750944780450,4.6974,142.8,142.72,6.72356755]
[1750944780649,40.27546597,142.81,142.72,6.72356755]
[1750944780950,44.5001,142.81,142.74,6.72356755]
[1750944781158,44.5001,142.81,142.78,7.0012]
[1750944781753,42.2493,142.84,142.75,37.5]
[1750944782048,37.5,142.84,142.78,6.72356755]
[1750944782250,37.5,142.84,142.79,7.0009]
[1750944782452,40.27718519,142.84,142.75,37.5]
[1750944782854,6.72356755,142.83,142.75,37.5]
[1750944783055,11.80185274,142.83,142.75,37.5]
[1750944783252,6.72356755,142.81,142.72,39.9376]
[1750944783458,37.5,142.8,142.72,39.9376]
[1750944783658,2.77718519,142.82,142.73,6.72356755]
[1750944783952,6.72356755,142.81,142.72,39.9376]
[1750944784155,9.16236755,142.81,142.72,39.9376]
[1750944784343,7.0018,142.78,142.75,7.0027]
[1750944784547,44.22356755,142.79,142.72,37.5]
[1750944784847,6.72356755,142.77,142.69,37.5]
[1750944785553,7.0034,142.75,142.69,37.5]
[1750944785953,11.84282005,142.77,142.69,37.5]
[1750944786252,6.72356755,142.74,142.67,2.2919]
[1750944786447,44.22356755,142.74,142.67,2.2919]
[1750944786661,7.0044,142.73,142.69,7.0056]
[1750944786954,6.72356755,142.76,142.67,2.2919]
[1750944787255,9.79782686,142.75,142.74,6.72356755]
[1750944787559,16.79842926,142.8,142.77,7.0017]
[1750944787761,9.79772926,142.79,142.77,7.0017]
[1750944787952,2.4388,142.81,142.74,6.72356755]
[1750944788258,37.5,142.83,142.76,6.72356755]
[1750944788557,15.70863535,142.82,142.75,6.72356755]
[1750944788760,15.70863535,142.81,142.75,6.72356755]
[1750944788949,37.5,142.83,142.75,6.72356755]
[1750944789152,15.70863533,142.82,142.74,4.7133]
[1750944789351,9.82351396,142.81,142.76,6.72356755]
[1750944789659,37.5,142.83,142.76,6.72356755]
[1750944789860,15.72042119,142.82,142.76,6.72356755]
[1750944790061,9.83045382,142.81,142.76,6.72356755]
[1750944790251,37.5,142.83,142.8,7.0002]
[1750944790556,15.68136516,142.82,142.8,7.0002]
[1750944790757,37.5,142.83,142.81,7.0]
[1750944790963,9.80869507,142.82,142.81,7.0]
[1750944791261,5.8740569,142.82,142.77,37.5]
[1750944791563,44.4991,142.83,142.8,7.0002]
[1750944791862,10.58802656,142.82,142.77,37.5]
[1750944792158,37.5,142.83,142.77,37.5]
[1750944792750,15.71005381,142.82,142.77,37.5]
[1750944793054,15.70945351,142.81,142.78,7.0014]
[1750944793256,9.83465378,142.8,142.74,2.3218]
[1750944793455,5.11852362,142.79,142.73,37.48]
[1750944793761,7.0012,142.79,142.76,7.0022]
[1750944794268,15.74991032,142.78,142.76,7.0022]
[1750944794462,57.5218819,142.83,142.73,37.48]
[1750944794662,15.75112439,142.82,142.73,48.94868799]
[1750944794864,15.75112439,142.81,142.73,48.94868799]
[1750944795062,15.75112439,142.8,142.73,48.94868799]
[1750944795270,7.0004,142.81,142.73,48.94868799]
[1750944795564,5.15818524,142.8,142.73,48.94868799]
[1750944795756,6.9998,142.82,142.73,48.94868799]
[1750944795957,15.75676224,142.81,142.73,48.94868799]
[1750944796159,5.88024425,142.8,142.73,48.94868799]
[1750944796362,7.0003,142.81,142.73,48.94868799]
[1750944796562,5.89969215,142.8,142.73,48.94868799]
[1750944796763,7.0003,142.81,142.73,48.94868799]
[1750944796964,44.4993,142.83,142.8,7.0003]
[1750944797265,11.05944524,142.82,142.77,49.36868799]
[1750944797563,15.81179127,142.85,142.79,11.46868799]
[1750944797748,11.99,142.81,142.79,11.46868799]
[1750944798166,11.99,142.81,142.8,7.0005]
[1750944799354,11.99,142.81,142.79,7.0008]
[1750944799663,18.9903,142.81,142.75,37.9]
[1750944799860,5.90358452,142.8,142.78,7.0012]
[1750944800066,18.9903,142.81,142.78,7.0012]
[1750944800371,5.9103613,142.8,142.78,7.0012]
[1750944800660,18.9903,142.81,142.78,7.0012]
[1750944800874,5.91018766,142.8,142.77,7.0017]
[1750944801059,18.9903,142.81,142.77,7.0017]
[1750944801256,15.64457692,142.8,142.77,7.0018]
[1750944801468,5.91311989,142.79,142.77,7.0018]
[1750944801670,7.0008,142.8,142.77,7.0018]
[1750944801859,5.91304103,142.79,142.78,7.0015]
[1750944802168,2.73097161,142.79,142.78,7.0015]
[1750944802471,5.21241886,142.8,142.79,7.001]
[1750944802668,2.7310917,142.8,142.74,11.46868799]
[1750944802870,11.99,142.81,142.74,11.46868799]
[1750944803068,2.73107671,142.8,142.79,7.001]
[1750944803974,11.99,142.81,142.8,7.0005]
[1750944805972,4.67317197,142.84,142.83,6.999]
[1750944806167,11.11943851,142.86,142.8,37.9]
[1750944806473,2.7106959,142.85,142.8,37.9]
[1750944806675,4.67498271,142.86,142.8,37.9]
[1750944806870,7.92976518,142.85,142.8,37.9]
[1750944807067,4.67498271,142.86,142.8,37.9]
[1750944807272,7.93006573,142.85,142.8,37.9]
[1750944807472,4.67694529,142.86,142.8,37.9]
[1750944807675,2.7117758,142.85,142.84,6.9983]
[1750944808070,9.7100758,142.85,142.8,37.9]
[1750944808377,13.8331372,142.84,142.82,6.9993]
[1750944808672,11.67524529,142.85,142.82,6.9993]
[1750944808873,13.83220334,142.84,142.82,6.9993]
[1750944809073,11.67524529,142.85,142.82,6.9993]
[1750944809288,13.83274328,142.84,142.83,6.999]
[1750944809464,5.90409011,142.84,142.83,6.999]
[1750944809663,5.90409011,142.84,142.77,54.12668799]
[1750944809664,11.12239012,142.86,142.77,56.53558799]
[1750944809861,8.61565354,142.85,142.84,6.9983]
[1750944810063,23.54565354,142.85,142.84,6.9983]
[1750944810264,14.93,142.85,142.84,6.9983]
[1750944810973,8.62168021,142.9,142.82,11.46868799]
[1750944811162,6.9956,142.9,142.81,49.36868799]
[1750944811473,44.96088841,142.91,142.81,49.36868799]
[1750944811674,13.83273892,142.9,142.81,49.36868799]
[1750944811870,40.2833,142.91,142.81,49.36868799]
[1750944812065,13.83273892,142.9,142.86,6.9972]
[1750944812374,12.21265556,142.9,142.86,6.9972]
[1750944812875,12.21265556,142.9,142.87,6.997]
[1750944813275,6.9961,142.9,142.87,6.997]
[1750944814176,12.92428339,142.9,142.87,6.997]
[1750944814578,6.9962,142.89,142.87,6.997]
[1750944814876,13.91818339,142.9,142.87,6.997]
[1750944815178,6.9967,142.88,142.81,44.63077005]
[1750944815471,8.64378634,142.89,142.81,44.63077005]
[1750944815676,16.63378634,142.9,142.88,6.9966]
[1750944816181,10.70690277,142.9,142.88,6.9966]
[1750944816368,16.6732874,142.9,142.88,6.9966]
[1750944816569,23.6688874,142.9,142.88,6.9966]
[1750944817067,10.70690277,142.9,142.89,6.9961]
[1750944817274,7.99,142.9,142.89,6.9961]
[1750944817868,7.99,142.9,142.88,6.9963]
[1750944818176,7.99,142.9,142.84,9.15517005]
[1750944818570,7.99,142.9,142.88,6.9965]
[1750944819177,7.99,142.9,142.89,6.9961]
[1750944820276,2.3736,142.96,142.94,6.9934]
[1750944820487,45.85390023,142.97,142.9,6.73077005]
[1750944820786,37.88,142.97,142.9,6.73077005]
[1750944821082,37.88,142.97,142.95,6.993]
[1750944821681,14.96590023,142.98,142.9,6.73077005]
[1750944821883,2.721985,142.98,142.92,6.73077005]
[1750944822579,6.992,142.98,142.95,6.9929]
[1750944823284,51.77177005,143.0,142.94,6.9935]
[1750944823285,6.9922,142.97,142.94,6.9935]
[1750944823679,6.9919,142.98,142.95,6.9929]
[1750944823980,7.97796111,142.99,142.95,6.9929]
[1750944824172,13.97181087,142.99,142.95,6.9929]
[1750944824379,5.99384976,142.99,142.95,6.9929]
[1750944824584,11.28387579,142.99,142.92,6.73077005]
[1750944824783,6.992,142.98,142.92,6.73077005]
[1750944824989,11.28387579,142.99,142.92,6.73077005]
[1750944825287,6.9921,142.98,142.92,6.73077005]
[1750944825779,42.5778,143.0,142.97,6.9919]
[1750944825983,42.5778,143.0,142.93,37.86]
[1750944826182,47.85198335,143.0,142.93,37.86]
[1750944826384,6.9915,142.99,142.96,6.9924]
[1750944826783,42.5778,143.0,142.96,6.9924]
[1750944826977,47.84938531,143.0,142.95,6.9929]
[1750944827183,47.84938531,143.0,142.93,37.86]
[1750944827184,49.30857005,143.0,142.93,37.86]
[1750944827385,54.58015536,143.0,142.93,37.86]
[1750944827584,6.9922,142.97,142.95,6.9929]
[1750944827783,49.30857005,143.0,142.93,37.86]
[1750944827986,11.31012875,142.99,142.93,37.86]
[1750944828184,6.9919,142.98,142.95,6.9929]
[1750944828387,5.32360503,142.98,142.93,37.86]
[1750944828583,37.88,143.0,142.94,6.73077005]
[1750944828987,5.32165393,143.01,142.94,6.73077005]
[1750944828988,12.31215393,143.01,142.94,6.73077005]
[1750944829687,5.32165393,143.01,142.94,6.73077005]
[1750944829885,45.08212041,143.03,142.94,6.73077005]
[1750944830185,45.08212041,143.03,142.9,2.4478]
[1750944830186,37.58,143.03,142.77,38.25453697]
[1750944830389,27.74295038,143.01,142.79,2.4012]
[1750944830687,6.72295038,142.93,142.82,6.72295038]
[1750944830882,6.72295038,142.93,142.79,2.4012]
[1750944830883,6.72295038,142.93,142.83,44.30295038]
[1750944831083,12.05294995,142.93,142.84,37.58]
[1750944831384,6.72295038,142.93,142.87,6.9968]
[1750944831792,6.9954,142.91,142.87,6.9968]
[1750944832187,5.33343709,142.92,142.87,6.9968]
[1750944832491,6.9957,142.9,142.87,6.9968]
[1750944832885,6.73042762,142.92,142.86,6.9973]
[1750944833186,5.33271461,142.91,142.86,6.9973]
[1750944833387,6.73042762,142.92,142.84,37.58]
[1750944833592,6.73042762,142.92,142.87,6.9968]
[1750944833593,6.9959,142.9,142.87,6.9968]
[1750944834194,17.52131666,142.92,142.87,6.9968]